bitfinex-derivatives/quotes_ETHF0:USTF0_20251001
["timestamp","ask_amount","ask_price","bid_price","bid_amount"]
[1759296111632,0.43346,4151.6,4151.5,0.79476]
[1759296111831,0.88906,4151.6,4151.5,1.33146]
[1759296112033,1.21016,4151.6,4151.5,1.33146]
[1759296112831,1.43876,4151.6,4151.5,1.19966]
[1759296113031,2.30527066,4151.6,4151.5,0.7662]
[1759296114439,2.30527066,4151.6,4151.5,1.19967]
[1759296114638,1.87181066,4151.6,4151.5,1.19967]
[1759296114840,2.30527066,4151.6,4151.5,1.19967]
[1759296117439,1.0053,4151.6,4151.5,1.19967]
[1759296117737,0.002877,4151.7,4151.6,1.21366]
[1759296117944,0.002877,4151.7,4151.6,2.08017066]
[1759296121547,0.66307,4152.4,4152.3,0.4387]
[1759296121853,1.24677,4152.4,4152.3,0.7802]
[1759296122241,1.45657,4152.4,4152.3,0.7802]
[1759296122547,1.45963935,4152.4,4152.3,0.7802]
[1759296123049,1.2116,4152.1,4152.0,3.2078]
[1759296123263,0.9122,4152.0,4151.9,1.00062]
[1759296123543,1.1572,4152.0,4151.9,1.00062]
[1759296124746,0.8134,4152.0,4151.9,1.21362]
[1759296125949,1.0232,4152.0,4151.9,1.21362]
[1759296127747,0.00306935,4152.4,4152.0,1.55823]
[1759296127948,1.08299,4154.2,4152.0,1.55823]
[1759296127949,0.3387,4153.6,4153.5,0.4387]
[1759296128247,1.8485083,4154.0,4153.6,1.21345]
[1759296128248,0.5684,4153.7,4153.6,1.21345]
[1759296128446,0.3387,4154.0,4153.9,0.43322]
[1759296128649,0.8134,4154.0,4153.9,1.21342]
[1759296128836,0.43323,4153.8,4153.1,0.4333]
[1759296129044,0.7782,4153.2,4153.1,1.21622184]
[1759296129243,1.0232,4153.2,4153.1,1.21622184]
[1759296129949,1.0232,4153.2,4153.1,0.66172184]
[1759296133854,1.0232,4153.2,4153.1,1.21622184]
[1759296134047,0.2297,4153.2,4153.1,1.21622184]
[1759296134751,0.5684,4153.2,4153.1,1.21622184]
[1759296136052,0.2297,4153.2,4153.1,1.21622184]
[1759296136648,0.7782,4153.2,4153.1,0.66172184]
[1759296137055,0.7782,4153.2,4153.1,1.00322184]
[1759296137357,0.7782,4153.2,4153.1,1.21622184]
[1759296140353,0.4747,4153.2,4153.1,1.21622184]
[1759296141753,1.0204,4153.2,4153.1,0.43602184]
[1759296142357,1.45369,4153.2,4153.1,0.00272184]
[1759296142655,6.45369,4153.2,4153.1,0.00272184]
[1759296143051,0.7693,4152.6,4152.5,0.43336]
[1759296143356,1.0143,4152.6,4152.5,0.98126]
[1759296143754,1.0143,4152.6,4152.5,1.20446]
[1759296143954,1.0143,4152.6,4152.5,1.20705467]
[1759296145057,1.0143,4152.6,4152.5,0.77369467]
[1759296145257,1.0143,4152.6,4152.5,0.21069467]
[1759296145460,1.0143,4152.6,4152.5,0.00259467]
[1759296145758,1.0143,4152.6,4152.5,0.22459467]
[1759296146462,1.0143,4152.6,4152.5,0.00259467]
[1759296146757,1.0143,4152.6,4152.5,0.22459467]
[1759296147054,0.7693,4152.6,4152.5,0.44779467]
[1759296147361,0.7693,4152.6,4152.5,0.92389467]
[1759296147362,0.245,4152.6,4152.5,0.92389467]
[1759296147856,0.4732,4152.6,4152.5,0.92389467]
[1759296149256,0.3239,4152.8,4152.7,0.222]
[1759296149560,0.7971,4152.8,4152.7,0.785]
[1759296149761,1.0186,4152.8,4152.7,0.785]
[1759296152661,1.0186,4152.8,4152.7,1.21834]
[1759296153963,1.45193,4152.8,4152.7,0.222]
[1759296154162,1.45193,4152.8,4152.7,0.43334]
[1759296154365,1.45193,4152.8,4152.5,0.00259467]
[1759296154366,0.7736,4152.6,4152.5,0.65794467]
[1759296155753,0.7736,4152.6,4152.5,0.99774467]
[1759296155964,0.7736,4152.6,4152.5,1.22094467]
[1759296157066,1.0186,4152.6,4152.5,1.22094467]
[1759296157266,0.7736,4152.6,4152.5,1.22094467]
[1759296158065,1.0186,4152.6,4152.5,1.22094467]
[1759296162670,1.0186,4152.6,4152.5,0.43594467]
[1759296163769,1.0186,4152.6,4152.5,0.65794467]
[1759296164772,1.0186,4152.6,4152.5,1.22094467]
[1759296166469,1.0186,4152.6,4152.5,0.43594467]
[1759296166770,1.0186,4152.6,4152.5,0.65794467]
[1759296167270,1.0186,4152.6,4152.5,0.99774467]
[1759296168269,1.45195,4152.6,4152.5,0.43594467]
[1759296168469,1.45195,4152.6,4152.5,0.00259467]
[1759296169566,0.88902,4152.0,4151.8,3.85321194]
[1759296169766,0.3239,4151.8,4151.6,0.43345]
[1759296169972,0.7736,4151.7,4151.6,0.43345]
[1759296170172,0.7736,4151.7,4151.6,0.65545]
[1759296170562,0.7736,4151.7,4151.6,0.22499776]
[1759296170774,0.7736,4151.7,4151.6,0.00299776]
[1759296172177,1.0186,4151.7,4151.6,0.22499776]
[1759296173176,0.7736,4151.7,4151.6,0.22499776]
[1759296173376,0.5347,4152.7,4152.6,1.18675]
[1759296173680,0.9912,4152.7,4152.6,1.18675]
[1759296174273,0.7462,4152.7,4152.6,1.18675]
[1759296174483,0.9912,4152.7,4152.6,1.18675]
[1759296174779,0.9912,4152.7,4152.6,0.7534]
[1759296176782,0.9912,4152.7,4152.6,0.4351]
[1759296178573,0.7462,4152.7,4152.6,0.7534]
[1759296178779,3.2078,4153.0,4152.9,1.18672]
[1759296178982,3.9875,4153.0,4152.9,1.18672]
[1759296179182,3.6698,4153.0,4152.9,1.18672]
[1759296179380,3.4528,4153.0,4152.9,1.18672]
[1759296180277,0.462,4153.0,4152.9,1.18672]
[1759296180781,0.245,4153.1,4152.9,1.18672]
[1759296181080,0.245,4153.1,4152.9,0.86842]
[1759296181284,0.245,4153.1,4153.0,0.8894]
[1759296182183,0.462,4153.1,4153.0,0.8894]
[1759296182480,0.7797,4153.1,4153.0,0.8894]
[1759296183681,0.5347,4153.4,4153.3,1.18668]
[1759296183876,0.5347,4153.4,4153.0,1.21926]
[1759296183877,3.7425,4153.7,4153.6,1.18665]
[1759296184080,3.2078,4153.7,4153.6,1.18665]
[1759296184282,0.74819367,4154.0,4153.9,1.18662]
[1759296184779,0.21899367,4154.0,4153.9,1.18662]
[1759296184979,0.46399367,4154.0,4153.9,1.18662]
[1759296186482,0.00199367,4154.0,4153.9,1.18662]
[1759296190989,0.74819367,4154.0,4153.9,1.18662]
[1759296191391,0.00199367,4154.0,4153.9,1.18662]
[1759296191593,3.2078,4154.7,4154.6,1.18655]
[1759296192087,0.217,4154.7,4154.6,1.18655]
[1759296192391,0.5347,4154.7,4154.6,1.18655]
[1759296192592,0.53774555,4154.7,4154.6,1.18940589]
[1759296193182,0.00304555,4154.7,4154.6,5.39980732]
[1759296194192,0.00304555,4154.7,4154.6,4.39720589]
[1759296195493,0.53774555,4154.7,4154.6,4.39720589]
[1759296195693,0.74924555,4154.7,4154.6,3.21065589]
[1759296195996,0.74924555,4154.7,4154.6,0.00285589]
[1759296195997,3.95704555,4154.7,4154.6,0.00285589]
[1759296197090,0.32074555,4154.7,4154.6,3.96405589]
[1759296197295,0.74924555,4154.7,4154.6,3.96405589]
[1759296197493,0.74924555,4154.7,4154.6,3.42015589]
[1759296197896,0.74924555,4154.7,4154.6,3.21065589]
[1759296198094,0.74924555,4154.7,4154.6,0.00285589]
[1759296199094,0.74924555,4154.7,4154.6,0.21235589]
[1759296199287,0.74924555,4154.7,4154.6,0.54305589]
[1759296199488,0.74924555,4154.7,4154.6,0.21235589]
[1759296201792,0.74924555,4154.7,4154.6,0.76985589]
[1759296202498,0.74924555,4154.7,4154.6,1.20300589]
[1759296202799,0.74924555,4154.7,4154.6,0.64550589]
[1759296203196,0.74924555,4154.7,4154.6,0.43600589]
[1759296204103,0.99424555,4154.7,4154.6,0.43600589]
[1759296204801,1.42738555,4154.7,4154.6,0.43600589]
[1759296205502,1.42738555,4154.7,4154.6,0.00285589]
[1759296207908,1.42738555,4154.7,4154.6,0.43600589]
[1759296208299,2.29298886,4154.7,4154.6,0.00285589]
[1759296213103,7.29298886,4154.7,4154.6,0.00285589]
[1759296213416,1.20163,4153.8,4153.7,3.2078]
[1759296213601,1.44663,4153.8,4153.7,3.2078]
[1759296214206,1.44663,4153.8,4153.7,3.21004907]
[1759296215207,1.44663,4153.8,4153.7,0.00224907]
[1759296216509,6.44663,4153.8,4153.7,0.00224907]
[1759296219414,1.44663,4153.8,4153.7,0.00224907]
[1759296222914,1.44563,4153.8,4153.7,0.00224907]
[1759296223114,1.20163,4153.8,4153.7,0.00224907]
[1759296223315,6.44563,4153.8,4153.7,0.00224907]
[1759296223609,0.7684,4152.6,4152.5,3.7453]
[1759296223918,1.0124,4152.6,4152.5,3.9541]
[1759296224414,1.0124,4152.6,4152.5,3.9570509]
[1759296224715,1.0124,4152.6,4152.5,3.4282509]
[1759296225104,1.0124,4152.6,4152.5,3.7482509]
[1759296225804,1.0124,4152.6,4152.5,3.9570509]
[1759296228016,1.0124,4152.6,4152.5,4.0915509]
[1759296228211,1.0124,4152.6,4152.5,4.5249109]
[1759296229212,0.4676,4152.6,4152.5,4.5249109]
[1759296229619,0.99163,4152.9,4152.8,0.85963]
[1759296229919,1.23563,4152.9,4152.8,1.17963]
[1759296230119,1.44573,4152.9,4152.8,1.17963]
[1759296230413,0.43335,4152.6,4152.5,3.8616109]
[1759296230618,1.20175,4152.6,4152.5,3.8616109]
[1759296230821,1.20175,4152.6,4152.5,4.1816109]
[1759296231123,1.20175,4152.6,4152.5,3.4282509]
[1759296231317,1.20175,4152.6,4152.5,0.2204509]
[1759296231517,1.20175,4152.6,4152.5,0.0029509]
[1759296232820,6.20175,4152.6,4152.5,0.0029509]
[1759296233122,1.20186,4151.6,4151.5,3.7453]
[1759296233322,1.44586,4151.6,4151.5,3.7453]
[1759296233922,1.4488397,4151.6,4151.5,3.95638908]
[1759296234423,1.4488397,4151.6,4151.5,0.74858908]
[1759296234827,2.31444301,4151.6,4151.5,0.00228908]
[1759296239523,1.4488397,4151.6,4151.5,0.00228908]
[1759296239726,2.31444301,4151.6,4151.5,0.54828908]
[1759296239926,2.31444301,4151.6,4151.5,0.21978908]
[1759296240421,0.7713797,4151.6,4151.5,0.77518908]
[1759296240620,0.9050397,4151.6,4151.5,0.90008908]
[1759296241729,1.4433397,4151.6,4151.5,0.00228908]
[1759296242319,1.0098797,4151.6,4151.5,0.21978908]
[1759296242522,1.0098797,4151.6,4151.5,0.77518908]
[1759296243918,1.0098797,4151.6,4151.5,0.00228908]
[1759296246938,1.4433397,4151.6,4151.5,0.00228908]
[1759296249338,1.4433397,4151.6,4151.5,0.21978908]
[1759296249742,1.4433397,4151.6,4151.5,0.00228908]
[1759296249930,1.1983397,4151.6,4151.5,0.00228908]
[1759296250129,1.4433397,4151.6,4151.5,0.00228908]
[1759296251640,1.4433397,4151.6,4151.5,0.21978908]
[1759296251937,1.4433397,4151.6,4151.5,0.54828908]
[1759296252137,1.1983397,4151.6,4151.5,0.77518908]
[1759296252441,1.4433397,4151.6,4151.5,0.77518908]
[1759296253836,1.1983397,4151.6,4151.5,0.77518908]
[1759296254134,1.1983397,4151.6,4151.5,1.76569239]
[1759296254135,0.6814397,4151.6,4151.5,1.76569239]
[1759296254330,1.2112397,4151.6,4151.5,0.90008908]
[1759296254530,1.4377397,4151.6,4151.5,0.00228908]
[1759296263946,1.4377397,4151.6,4151.5,0.56958908]
[1759296267245,1.4377397,4151.6,4151.5,0.22708908]
[1759296267740,1.4377397,4151.6,4151.5,0.00228908]
[1759296268337,0.43354,4150.8,4150.7,0.64634939]
[1759296268538,0.43354,4150.8,4150.5,4.07303913]
[1759296268539,0.3249,4150.7,4150.6,0.64634939]
[1759296268738,0.43358,4150.4,4150.3,0.64634939]
[1759296268942,1.10338,4150.4,4150.3,0.5673]
[1759296269339,1.10338,4150.4,4150.3,0.7854625]
[1759296269538,1.42828,4150.4,4150.3,0.7854625]
[1759296271140,2.43169836,4150.4,4150.3,0.0021625]
[1759296275238,1.18328,4150.4,4150.3,0.0021625]
[1759296275546,1.42828,4150.4,4150.3,0.0021625]
[1759296280847,2.43169836,4150.4,4150.3,0.0021625]
[1759296286654,2.43169836,4150.4,4149.8,3.2078]
[1759296286655,1.18333,4149.9,4149.8,3.2078]
[1759296286855,1.42833,4149.9,4149.8,3.2078]
[1759296287659,1.42833,4149.9,4149.8,3.21070114]
[1759296289557,1.42833,4149.9,4149.8,0.00290114]
[1759296291456,1.42833,4149.9,4149.8,0.43654114]
[1759296291758,1.42833,4149.9,4149.8,0.66134114]
[1759296292160,1.42833,4149.9,4149.8,1.00384114]
[1759296292561,1.42833,4149.9,4149.8,0.57020114]
[1759296293358,1.42833,4149.9,4149.8,1.00384114]
[1759296293859,1.42833,4149.9,4149.8,1.21984114]
[1759296294156,1.08392,4150.6,4150.0,0.5687]
[1759296294157,0.3142,4150.1,4150.0,0.5687]
[1759296294458,0.3142,4150.3,4150.2,1.2041]
[1759296294654,0.5592,4150.3,4150.2,1.2041]
[1759296294958,0.7746,4150.3,4150.2,1.2041]
[1759296296058,0.74773,4150.9,4150.8,0.43354]
[1759296296254,0.74773,4150.9,4150.8,0.7705]
[1759296296255,1.42253,4150.9,4150.8,0.7705]
[1759296296858,1.42253,4150.9,4150.8,0.2107]
[1759296297952,3.2078,4151.2,4150.8,0.4313]
[1759296298158,0.989,4151.1,4151.0,0.7705]
[1759296298461,0.989,4151.1,4151.0,0.9079]
[1759296299963,3.2078,4151.7,4151.0,0.1374]
[1759296299964,3.522,4151.7,4151.0,0.1374]
[1759296300260,0.7736,4151.5,4151.4,1.20398]
[1759296300466,0.4594,4151.5,4151.4,0.86478]
[1759296300667,0.988,4151.5,4151.4,1.20398]
[1759296300857,0.43348,4151.4,4151.1,0.7727]
[1759296301055,0.43348,4151.4,4150.8,3.85414939]
[1759296301056,0.744,4151.3,4151.2,1.20399]
[1759296301258,0.4594,4151.3,4151.2,1.20399]
[1759296301458,0.6738,4151.3,4151.2,1.20399]
[1759296301658,0.988,4151.3,4151.2,1.20399]
[1759296304468,0.7736,4151.3,4151.2,1.20399]
[1759296304965,0.5296,4151.3,4151.2,1.20399]
[1759296305163,0.5325797,4151.6,4151.5,0.86477]
[1759296305368,0.7765797,4151.6,4151.5,1.20397]
[1759296305560,0.9909797,4151.6,4151.5,1.20397]
[1759296305762,0.9909797,4151.6,4151.5,0.7705]
[1759296305967,0.9909797,4151.6,4151.5,0.2107]
[1759296307365,0.78627,4151.5,4151.4,0.43347]
[1759296307667,1.31487,4151.5,4151.4,0.43347]
[1759296308062,0.8814,4151.5,4151.4,0.43347]
[1759296308264,0.8814,4151.5,4151.4,1.20397]
[1759296308566,0.0029797,4151.6,4151.5,0.9079]
[1759296308767,0.2469797,4151.6,4151.5,0.9079]
[1759296309165,0.9909797,4151.6,4151.5,0.7705]
[1759296309468,0.4623797,4151.6,4151.5,0.9079]
[1759296309664,0.2469797,4151.6,4151.5,1.34137]
[1759296309858,0.21532954,4151.6,4151.5,6.34137]
[1759296310061,3.85659,4152.2,4152.1,0.6441]
[1759296310266,4.1958,4152.2,4152.1,1.2039]
[1759296310665,0.43343,4151.8,4151.6,0.43345]
[1759296310868,0.744,4151.4,4151.3,0.43348]
[1759296311064,1.42147,4151.4,4151.3,0.43348]
[1759296311264,0.988,4151.4,4151.3,0.43348]
[1759296311564,0.988,4151.4,4151.3,0.98338]
[1759296311963,0.988,4151.4,4151.3,1.20398]
[1759296312764,0.988,4151.4,4151.3,0.64418]
[1759296312966,0.988,4151.4,4151.3,1.20398]
[1759296314263,0.988,4151.4,4150.8,3.2078]
[1759296314264,0.4335,4151.2,4151.1,0.2107]
[1759296314571,1.1775,4151.2,4151.1,0.5499]
[1759296314770,1.1775,4151.2,4151.1,0.7705]
[1759296315066,0.4594,4151.2,4151.1,0.7705]
[1759296315474,0.7736,4151.2,4151.1,0.7705]
[1759296316363,1.4215,4151.2,4151.1,1.20401]
[1759296316570,1.4215,4151.2,4151.1,0.7705]
[1759296317871,0.988,4151.2,4151.1,1.20401]
[1759296318169,0.86332,4151.0,4150.9,0.64423]
[1759296318364,1.17752,4151.0,4150.9,0.98343]
[1759296318566,1.17752,4151.0,4150.9,1.20403]
[1759296320272,1.17752,4151.0,4150.9,0.7705]
[1759296320570,1.30212,4151.0,4150.9,0.3392]
[1759296320770,1.30212,4151.0,4150.9,0.5489]
[1759296320972,1.30212,4151.0,4150.9,0.7691]
[1759296321770,1.17752,4151.0,4150.9,0.7691]
[1759296321970,1.17752,4151.0,4150.9,1.20263]
[1759296322171,0.64508,4151.4,4151.3,0.4299]
[1759296322370,0.88908,4151.4,4151.3,0.4299]
[1759296322771,1.21068,4151.4,4151.3,0.7596]
[1759296324779,1.21068,4151.4,4151.3,1.19309]
[1759296327473,0.7772,4151.4,4151.3,1.19309]
[1759296327978,1.41967,4151.4,4151.3,1.19309]
[1759296329177,0.9862,4151.4,4151.3,1.19309]
[1759296329574,1.41968,4151.4,4151.3,1.19309]
[1759296330581,0.9862,4151.4,4151.3,1.19309]
[1759296330781,1.41968,4151.4,4151.3,1.19309]
[1759296330971,1.41968,4151.4,4151.3,0.7596]
[1759296331172,1.33112,4151.0,4150.9,0.64634939]
[1759296331479,1.1416,4151.0,4150.9,1.19402]
[1759296331675,1.0118,4151.0,4150.9,1.84036939]
[1759296334874,1.44532,4151.0,4150.9,1.84036939]
[1759296335487,1.0118,4151.0,4150.9,1.84036939]
[1759296336582,0.8028,4151.0,4150.9,1.84036939]
[1759296339990,1.44532,4151.0,4150.9,1.84036939]
[1759296340179,0.86893,4150.9,4150.8,0.85844939]
[1759296340484,1.20133,4150.9,4150.8,1.19345007]
[1759296340784,0.43355,4150.7,4150.6,0.64955007]
[1759296341081,1.33117,4150.5,4150.4,0.64955007]
[1759296341281,1.20138,4150.4,4150.3,3.2078]
[1759296341481,2.06827451,4150.4,4150.3,3.2078]
[1759296342086,0.86899,4150.3,4150.2,0.64955007]
[1759296342294,1.33122,4150.0,4149.9,1.19345007]
[1759296342492,1.57522,4150.0,4149.9,0.86165007]
[1759296342990,1.57522,4150.0,4149.9,0.5439]
[1759296344289,1.57522,4150.0,4149.9,0.7605]
[1759296345189,1.0118,4150.0,4149.9,0.7605]
[1759296345580,0.7678,4150.0,4149.9,0.7605]
[1759296345782,1.0118,4150.0,4149.9,0.7605]
[1759296345983,0.4704,4150.0,4149.9,0.7605]
[1759296346493,1.0118,4150.0,4149.9,0.7605]
[1759296347390,0.67761,4150.1,4150.0,0.8866]
[1759296347788,1.23641,4150.1,4150.0,0.8866]
[1759296348093,1.23641,4150.1,4150.0,1.32022]
[1759296348094,0.90401,4150.1,4150.0,1.32022]
[1759296348286,1.23641,4150.1,4150.0,1.32022]
[1759296348489,1.23641,4150.1,4150.0,0.8866]
[1759296348984,1.23641,4150.1,4150.0,1.32022]
[1759296351491,1.44541,4150.1,4150.0,0.4287]
[1759296351686,1.44541,4150.1,4150.0,0.2121]
[1759296352090,1.44541,4150.1,4150.0,0.97752]
[1759296352291,1.44541,4150.1,4150.0,1.19412]
[1759296352896,1.44541,4150.1,4150.0,0.7605]
[1759296353097,1.44541,4150.1,4150.0,1.19412]
[1759296354094,1.44541,4150.1,4150.0,0.4287]
[1759296354293,1.00203,4150.0,4149.9,0.43363]
[1759296354591,1.20973,4150.0,4149.9,1.19823]
[1759296354891,0.7761,4150.0,4149.9,1.19823]
[1759296355289,0.9068,4150.0,4149.9,1.19823]
[1759296355798,0.7761,4150.0,4149.9,1.19823]
[1759296356793,0.7761,4150.0,4149.8,1.48570114]
[1759296356993,0.43372,4149.1,4149.0,0.05883278]
[1759296357199,0.43377,4148.6,4148.5,0.3427]
[1759296357394,4.75446451,4148.6,4148.5,0.3427]
[1759296357600,3.88757,4148.6,4148.5,0.5498]
[1759296357788,3.8904808,4148.6,4148.5,0.55184735]
[1759296358493,4.75737531,4148.6,4148.5,0.55184735]
[1759296359000,4.75737531,4148.6,4148.5,0.89264735]
[1759296360597,1.08445,4148.5,4147.5,0.126]
[1759296360796,4.50856451,4147.6,4147.5,0.126]
[1759296361001,4.75556451,4147.6,4147.5,0.126]
[1759296361499,9.75556451,4147.6,4147.5,0.126]
[1759296361692,4.50856451,4147.6,4147.5,0.12798817]
[1759296361893,3.64167,4147.6,4147.5,0.55178817]
[1759296362098,3.88867,4147.6,4147.5,0.55178817]
[1759296362503,4.75556451,4147.6,4147.5,0.55178817]
[1759296362799,4.75556451,4147.6,4147.5,0.89258817]
[1759296363295,4.50856451,4147.6,4147.5,0.89258817]
[1759296363500,4.75556451,4147.6,4147.5,0.89258817]
[1759296364598,4.75556451,4147.6,4147.5,1.32646817]
[1759296364599,3.2078,4147.6,4147.5,1.32646817]
[1759296364805,3.2078,4148.1,4148.0,0.7646]
[1759296364993,3.4548,4148.1,4148.0,0.7646]
[1759296366600,0.0029108,4148.6,4148.5,0.8906]
[1759296366904,0.2499108,4148.6,4148.5,0.8906]
[1759296371499,0.2499108,4148.6,4148.5,0.4668]
[1759296371896,0.2499108,4148.6,4148.5,0.8906]
[1759296372394,0.0029108,4148.6,4148.5,0.8906]
[1759296372600,0.2499108,4148.6,4148.5,0.8906]
[1759296374704,0.0029108,4148.6,4148.5,0.8906]
[1759296375110,0.2499108,4148.6,4148.5,0.8906]
[1759296375504,3.2078,4149.2,4149.1,0.43371]
[1759296375805,3.2078,4149.2,4149.1,1.19831]
[1759296375806,3.4548,4149.2,4149.1,1.19831]
[1759296376300,0.247,4149.2,4149.1,1.19831]
[1759296376496,0.24955332,4149.2,4149.1,1.19831]
[1759296377910,0.24955332,4149.2,4149.1,0.7646]
[1759296381512,0.00255332,4149.2,4149.1,0.7646]
[1759296381805,0.24955332,4149.2,4149.1,0.7646]
[1759296382012,0.00255332,4149.2,4149.1,6.63149451]
[1759296383210,0.00255332,4149.2,4149.1,0.58504599]
[1759296383211,9.51094783,4149.2,4149.1,0.58504599]
[1759296383402,0.43377,4148.6,4148.5,0.3459]
[1759296383603,4.75646451,4148.6,4148.5,0.3459]
[1759296384210,3.88957,4148.6,4148.5,0.3459]
[1759296385410,3.88957,4148.6,4148.5,0.6744]
[1759296388021,3.64157,4148.6,4148.5,0.8964]
[1759296388221,3.88957,4148.6,4148.5,0.8964]
[1759296393031,3.88957,4148.6,4148.5,0.6744]
[1759296393230,3.88957,4148.6,4148.5,0.4545]
[1759296398224,3.88957,4148.6,4148.5,0.6744]
[1759296398427,3.88857,4148.6,4148.5,0.8964]
[1759296399933,3.64157,4148.6,4148.5,0.8964]
[1759296400232,3.88857,4148.6,4148.5,0.8964]
[1759296402536,3.64157,4148.6,4148.5,0.8964]
[1759296402736,3.88857,4148.6,4148.5,0.8964]
[1759296403337,3.88857,4148.6,4148.5,1.33018]
[1759296404940,3.21035332,4149.2,4149.1,0.7704]
[1759296405141,3.45735332,4149.2,4149.1,0.7704]
[1759296406138,3.89106332,4149.2,4149.1,0.7704]
[1759296406338,4.89548584,4149.2,4149.1,0.7704]
[1759296406734,4.89548584,4149.2,4149.1,1.20412]
[1759296406735,4.64848584,4149.2,4149.1,1.20412]
[1759296406935,3.89106332,4149.2,4149.1,0.7704]
[1759296410042,3.89106332,4149.2,4149.1,1.20412]
[1759296410043,3.21035332,4149.2,4149.1,1.20412]
[1759296410242,3.45735332,4149.2,4149.1,1.20412]
[1759296410844,3.89106332,4149.2,4149.1,1.20412]
[1759296412044,3.45735332,4149.2,4149.1,1.20412]
[1759296412539,3.21035332,4149.2,4149.1,1.20412]
[1759296412746,3.45735332,4149.2,4149.1,1.20412]
[1759296417041,0.24955332,4149.2,4149.1,1.20412]
[1759296417851,0.00255332,4149.2,4149.1,1.20412]
[1759296418147,0.24955332,4149.2,4149.1,1.20412]
[1759296419246,3.2078,4149.7,4149.6,0.43367]
[1759296419450,3.2078,4150.2,4150.1,0.7787]
[1759296419652,3.8884,4150.2,4150.1,1.21231]
[1759296420051,3.2078,4150.2,4150.1,1.21231]
[1759296420253,3.89145166,4150.2,4150.1,1.21231]
[1759296420645,3.45785166,4150.2,4150.1,1.21231]
[1759296421145,0.00305166,4150.2,4150.1,1.21231]
[1759296421753,4.21527418,4150.2,4150.1,0.345]
[1759296422050,4.21527418,4150.2,4150.1,0.5563]
[1759296423452,3.21085166,4150.2,4150.1,0.7787]
[1759296423644,3.45785166,4150.2,4150.1,0.7787]
[1759296424955,3.21085166,4150.2,4150.1,0.7787]
[1759296425453,3.45685166,4150.2,4150.1,0.7787]
[1759296425653,3.21085166,4150.2,4150.1,0.7787]
[1759296425854,3.45685166,4150.2,4150.1,0.7787]
[1759296426054,3.21085166,4150.2,4150.1,0.7787]
[1759296426246,0.24905166,4150.2,4150.1,0.7787]
[1759296427951,0.24905166,4150.2,4150.1,1.21232]
[1759296428350,0.00305166,4150.2,4150.1,1.21232]
[1759296428554,0.24905166,4150.2,4150.1,1.21232]
[1759296435754,0.68265166,4150.2,4150.1,0.7787]
[1759296435957,0.68265166,4150.2,4150.1,1.21231]
[1759296436257,0.24905166,4150.2,4150.1,1.21231]
[1759296437164,0.68265166,4150.2,4150.1,1.21231]
[1759296438061,0.24905166,4150.2,4150.1,1.21231]
[1759296440770,0.68265166,4150.2,4150.1,1.21231]
[1759296442164,0.24905166,4150.2,4150.1,1.21231]
[1759296446170,0.24905166,4150.2,4150.1,0.5563]
[1759296446171,0.68265166,4150.2,4150.1,0.5563]
[1759296446368,5.68265166,4150.2,4150.1,0.345]
[1759296446965,0.68265166,4150.2,4150.1,0.345]
[1759296447170,5.68265166,4150.2,4150.1,0.345]
[1759296448273,6.68707418,4150.2,4150.1,0.345]
[1759296448474,1.44107418,4150.2,4150.1,0.5647]
[1759296448676,1.68707418,4150.2,4150.1,0.5647]
[1759296448875,1.44107418,4150.2,4150.1,0.7868]
[1759296449075,3.41872057,4150.2,4150.1,0.7868]
[1759296449277,0.68265166,4150.2,4150.1,0.7868]
[1759296450878,0.43665166,4150.2,4150.1,0.7868]
[1759296451175,0.68265166,4150.2,4150.1,0.7868]
[1759296452878,0.43665166,4150.2,4150.1,0.7868]
[1759296453175,0.00305166,4150.2,4150.1,0.7868]
[1759296453378,0.24905166,4150.2,4150.1,0.7868]
[1759296460097,0.24905166,4150.2,4150.1,1.22042]
[1759296460595,0.68266166,4150.2,4150.1,1.22042]
[1759296460796,0.24905166,4150.2,4150.1,1.22042]
[1759296461598,0.68266166,4150.2,4150.1,1.22042]
[1759296463689,0.68266166,4150.2,4150.1,0.7868]
[1759296463999,0.68166166,4150.2,4150.1,0.7868]
[1759296465492,0.68166166,4150.2,4150.1,0.345]
[1759296466193,0.43666166,4150.2,4150.1,0.7868]
[1759296466497,0.68166166,4150.2,4150.1,0.7868]
[1759296467295,0.68166166,4150.2,4150.1,1.22041]
[1759296467496,0.68166166,4150.2,4150.1,0.7868]
[1759296467694,0.00305166,4150.2,4150.1,0.7868]
[1759296467899,0.24805166,4150.2,4150.1,1.22041]
[1759296468102,0.68165166,4150.2,4150.1,1.22041]
[1759296469193,0.00305166,4150.2,4150.1,2.0879088]
[1759296470891,0.24805166,4150.2,4150.1,2.0879088]
[1759296474300,0.68165166,4150.2,4150.1,0.7868]
[1759296475402,0.68165166,4150.2,4150.1,1.22041]
[1759296475902,0.24805166,4150.2,4150.1,1.22041]
[1759296476403,0.68166166,4150.2,4150.1,1.22041]
[1759296477101,0.24805166,4150.2,4150.1,1.22041]
[1759296478502,1.54916046,4150.2,4150.1,0.5647]
[1759296478901,1.54916046,4150.2,4150.1,0.7834]
[1759296479496,1.54916046,4150.2,4150.1,0.5647]
[1759296479702,1.54916046,4150.2,4150.1,0.345]
[1759296480498,0.43367,4149.6,4149.5,0.3393]
[1759296480707,1.5461688,4149.6,4149.5,0.3393]
[1759296481205,1.5461688,4149.6,4149.5,0.558]
[1759296481605,0.245,4149.6,4149.5,0.558]
[1759296482606,1.1124988,4149.6,4149.5,0.6566]
[1759296482809,0.8674988,4149.6,4149.5,0.8753]
[1759296483003,1.1124988,4149.6,4149.5,0.8753]
[1759296485204,0.8674988,4149.6,4149.5,0.8753]
[1759296485509,1.1124988,4149.6,4149.5,0.8753]
[1759296486914,0.8674988,4149.6,4149.5,0.8753]
[1759296487410,1.1124988,4149.6,4149.5,0.8753]
[1759296488207,0.8674988,4149.6,4149.5,0.8753]
[1759296488414,1.1124988,4149.6,4149.5,0.8753]
[1759296490013,1.1124988,4149.6,4149.5,1.30898]
[1759296490210,1.1124988,4149.6,4149.5,0.8753]
[1759296495114,1.5461688,4149.6,4149.5,1.30898]